[Event "Betsys MČR v online bleskovém šachu 2021"]
[Site "Chess.com"]
[Date "2021.04.17"]
[Round "9"]
[White "Devasales"]
[Black "DominikS3"]
[Result "1-0"]
[WhiteElo "1641"]
[BlackElo "1338"]
[TimeControl "180+1"]
[EndTime "10:30:26 PDT"]
[Termination "Uživatel Devasales zvítězil matem"]

1. e4 {[%clk 0:03:00.9]} 1... c6 {[%clk 0:02:59]} 2. d4 {[%clk 0:02:59]} 2... d5
{[%clk 0:02:58.3]} 3. e5 {[%clk 0:02:58.8]} 3... Bf5 {[%clk 0:02:57.6]} 4. g4
{[%clk 0:02:55.4]} 4... Bg6 {[%clk 0:02:56.4]} 5. Nd2 {[%clk 0:02:46.8]} 5... h5
{[%clk 0:02:52.9]} 6. g5 {[%clk 0:02:43.2]} 6... e6 {[%clk 0:02:49.5]} 7. h4
{[%clk 0:02:41]} 7... c5 {[%clk 0:02:46.6]} 8. c3 {[%clk 0:02:38.5]} 8... cxd4
{[%clk 0:02:44.9]} 9. cxd4 {[%clk 0:02:37.5]} 9... Nc6 {[%clk 0:02:41]} 10. Ngf3
{[%clk 0:02:36]} 10... Nb4 {[%clk 0:02:37.8]} 11. Bb5+ {[%clk 0:02:30.2]} 11...
Nc6 {[%clk 0:02:22.7]} 12. O-O {[%clk 0:02:17.9]} 12... Rc8 {[%clk 0:02:20.2]}
13. Nb3 {[%clk 0:02:09.3]} 13... a6 {[%clk 0:02:18]} 14. Bd3 {[%clk 0:02:02.6]}
14... Bxd3 {[%clk 0:02:15.1]} 15. Qxd3 {[%clk 0:02:01.8]} 15... b5 {[%clk
0:02:09.6]} 16. g6 {[%clk 0:01:48.4]} 16... Nh6 {[%clk 0:01:58.3]} 17. Bxh6
{[%clk 0:01:46.1]} 17... Rxh6 {[%clk 0:01:55]} 18. gxf7+ {[%clk 0:01:45.7]}
18... Kxf7 {[%clk 0:01:54.2]} 19. Ng5+ {[%clk 0:01:37.5]} 19... Kg8 {[%clk
0:01:49.1]} 20. f4 {[%clk 0:01:14.6]} 20... Ne7 {[%clk 0:01:41.4]} 21. Rf2
{[%clk 0:01:03.9]} 21... Nf5 {[%clk 0:01:39.9]} 22. Raf1 {[%clk 0:00:58.1]}
22... Nxh4 {[%clk 0:01:37.2]} 23. Qh3 {[%clk 0:00:48.6]} 23... Nf5 {[%clk
0:01:34.4]} 24. Nxe6 {[%clk 0:00:47.6]} 24... Rxe6 {[%clk 0:01:32.5]} 25. Qxf5
{[%clk 0:00:46.9]} 25... Qe8 {[%clk 0:01:25.3]} 26. Rg2 {[%clk 0:00:40.3]} 26...
Qf7 {[%clk 0:01:20]} 27. Qh3 {[%clk 0:00:36.1]} 27... g6 {[%clk 0:00:55.6]} 28.
Qxh5 {[%clk 0:00:33.2]} 28... Bg7 {[%clk 0:00:52.4]} 29. Qh3 {[%clk 0:00:30.8]}
29... b4 {[%clk 0:00:44.9]} 30. Nc5 {[%clk 0:00:26.6]} 30... Rxc5 {[%clk
0:00:39.5]} 31. dxc5 {[%clk 0:00:26]} 31... Qf5 {[%clk 0:00:34.3]} 32. Qg3
{[%clk 0:00:16.8]} 32... a5 {[%clk 0:00:24.4]} 33. Rc1 {[%clk 0:00:15]} 33... g5
{[%clk 0:00:15.8]} 34. c6 {[%clk 0:00:13.2]} 34... gxf4 {[%clk 0:00:14.8]} 35.
Qxg7# {[%clk 0:00:12.7]} 1-0

[Event "Betsys MČR v online bleskovém šachu 2021"]
[Site "Chess.com"]
[Date "2021.04.17"]
[Round "9"]
[White "Diamantidis_13"]
[Black "Joanna23W"]
[Result "0-1"]
[WhiteElo "2446"]
[BlackElo "2683"]
[TimeControl "180+1"]
[EndTime "10:30:28 PDT"]
[Termination "Uživatel Joanna23W zvítězil na čas"]

1. Nf3 {[%clk 0:02:57.2]} 1... Nf6 {[%clk 0:02:59.2]} 2. c4 {[%clk 0:02:57.1]}
2... g6 {[%clk 0:02:58.3]} 3. b3 {[%clk 0:02:57.4]} 3... Bg7 {[%clk 0:02:57.8]}
4. Bb2 {[%clk 0:02:57.9]} 4... d6 {[%clk 0:02:57.9]} 5. d4 {[%clk 0:02:57.8]}
5... O-O {[%clk 0:02:57.3]} 6. g3 {[%clk 0:02:57.7]} 6... Nbd7 {[%clk
0:02:54.5]} 7. d5 {[%clk 0:02:46.5]} 7... a5 {[%clk 0:02:52.1]} 8. Bg2 {[%clk
0:02:40.9]} 8... Nc5 {[%clk 0:02:52.2]} 9. O-O {[%clk 0:02:38.3]} 9... c6 {[%clk
0:02:52.4]} 10. dxc6 {[%clk 0:02:36.2]} 10... bxc6 {[%clk 0:02:52.6]} 11. Nd4
{[%clk 0:02:36]} 11... Bb7 {[%clk 0:02:41.1]} 12. Nxc6 {[%clk 0:02:25.3]} 12...
Qc7 {[%clk 0:02:37.1]} 13. Nd4 {[%clk 0:02:24.5]} 13... Bxg2 {[%clk 0:02:35.8]}
14. Kxg2 {[%clk 0:02:25.4]} 14... a4 {[%clk 0:02:34.5]} 15. Nd2 {[%clk
0:02:09.7]} 15... Qb7+ {[%clk 0:02:30.1]} 16. N4f3 {[%clk 0:02:03.5]} 16... Nfe4
{[%clk 0:02:20.2]} 17. Bxg7 {[%clk 0:02:01.4]} 17... Kxg7 {[%clk 0:02:20.2]} 18.
Nxe4 {[%clk 0:01:55.7]} 18... Nxe4 {[%clk 0:02:14.9]} 19. Qd4+ {[%clk
0:01:13.1]} 19... Kg8 {[%clk 0:02:12]} 20. Rab1 {[%clk 0:01:10.2]} 20... axb3
{[%clk 0:02:09.8]} 21. Rxb3 {[%clk 0:00:55.9]} 21... Qc6 {[%clk 0:02:09.5]} 22.
Re3 {[%clk 0:00:56.3]} 22... f5 {[%clk 0:01:49.9]} 23. a3 {[%clk 0:00:43]} 23...
Ra4 {[%clk 0:01:49]} 24. Qd5+ {[%clk 0:00:24.9]} 24... Qxd5 {[%clk 0:01:48.7]}
25. cxd5 {[%clk 0:00:25.8]} 25... Rfa8 {[%clk 0:01:48.7]} 26. Ra1 {[%clk
0:00:23.7]} 26... R8a5 {[%clk 0:01:47.4]} 27. Rd3 {[%clk 0:00:18]} 27... Nf6
{[%clk 0:01:42.6]} 28. Rd4 {[%clk 0:00:16.1]} 28... Nxd5 {[%clk 0:01:36]} 29.
Rxa4 {[%clk 0:00:15.2]} 29... Rxa4 {[%clk 0:01:35.5]} 30. Rd1 {[%clk 0:00:14.9]}
30... Nc3 {[%clk 0:01:35]} 31. Rd3 {[%clk 0:00:14]} 31... Nb5 {[%clk 0:01:28.3]}
32. Nd2 {[%clk 0:00:08.9]} 32... Rxa3 {[%clk 0:01:26.5]} 33. Rxa3 {[%clk
0:00:09]} 33... Nxa3 {[%clk 0:01:26.5]} 34. e3 {[%clk 0:00:08.9]} 34... Kf7
{[%clk 0:01:26.3]} 35. Nf3 {[%clk 0:00:09.2]} 35... e5 {[%clk 0:01:26.3]} 36. h4
{[%clk 0:00:09.8]} 36... h6 {[%clk 0:01:24.6]} 37. Kf1 {[%clk 0:00:10.1]} 37...
Ke6 {[%clk 0:01:23.6]} 38. Ke2 {[%clk 0:00:10.7]} 38... Nb5 {[%clk 0:01:22.6]}
39. Nd2 {[%clk 0:00:10.9]} 39... d5 {[%clk 0:01:21.7]} 40. Nf3 {[%clk
0:00:11.2]} 40... d4 {[%clk 0:01:18.3]} 41. Ne1 {[%clk 0:00:08]} 41... Kd5
{[%clk 0:01:15.4]} 42. exd4 {[%clk 0:00:08.2]} 42... exd4 {[%clk 0:01:14.3]} 43.
Nd3 {[%clk 0:00:05.5]} 43... Nc3+ {[%clk 0:01:11.9]} 44. Kf3 {[%clk 0:00:04.8]}
44... g5 {[%clk 0:01:09.8]} 45. hxg5 {[%clk 0:00:04.3]} 45... hxg5 {[%clk
0:01:09.6]} 46. g4 {[%clk 0:00:04.9]} 46... fxg4+ {[%clk 0:01:07]} 47. Kxg4
{[%clk 0:00:04.5]} 47... Ne4 {[%clk 0:00:57.5]} 48. f3 {[%clk 0:00:01.9]} 48...
Nc5 {[%clk 0:00:57.3]} 0-1

[Event "Betsys MČR v online bleskovém šachu 2021"]
[Site "Chess.com"]
[Date "2021.04.17"]
[Round "9"]
[White "Mitram64"]
[Black "Vesselovsky52"]
[Result "1/2-1/2"]
[WhiteElo "2099"]
[BlackElo "2326"]
[TimeControl "180+1"]
[EndTime "10:30:28 PDT"]
[Termination "Remíza opakováním pozice"]

1. d4 {[%clk 0:03:00.9]} 1... g6 {[%clk 0:02:57.8]} 2. Nf3 {[%clk 0:03:00.5]}
2... Bg7 {[%clk 0:02:57.3]} 3. Bf4 {[%clk 0:03:00.1]} 3... d6 {[%clk 0:02:56.2]}
4. e3 {[%clk 0:02:59.9]} 4... Nf6 {[%clk 0:02:54.6]} 5. Be2 {[%clk 0:02:59.7]}
5... c5 {[%clk 0:02:47]} 6. c3 {[%clk 0:02:56.6]} 6... b6 {[%clk 0:02:45.5]} 7.
h3 {[%clk 0:02:54.5]} 7... Bb7 {[%clk 0:02:44.9]} 8. Nbd2 {[%clk 0:02:54.1]}
8... O-O {[%clk 0:02:44.3]} 9. O-O {[%clk 0:02:54]} 9... Nbd7 {[%clk 0:02:43.2]}
10. a4 {[%clk 0:02:52.8]} 10... a6 {[%clk 0:02:41.5]} 11. Qb3 {[%clk 0:02:51.8]}
11... Qc7 {[%clk 0:02:37.8]} 12. Rfc1 {[%clk 0:02:45.2]} 12... Bc6 {[%clk
0:02:30.3]} 13. Bh2 {[%clk 0:02:37.8]} 13... h6 {[%clk 0:02:24.4]} 14. Qa3
{[%clk 0:02:25.8]} 14... b5 {[%clk 0:02:18.8]} 15. dxc5 {[%clk 0:02:24.8]} 15...
Nxc5 {[%clk 0:02:16.4]} 16. Qxc5 {[%clk 0:02:22.5]} 16... Qb7 {[%clk 0:02:09.3]}
17. Qa3 {[%clk 0:02:14.7]} 17... bxa4 {[%clk 0:02:06.7]} 18. b4 {[%clk
0:02:02.2]} 18... axb3 {[%clk 0:01:56.6]} 19. Nxb3 {[%clk 0:02:00.2]} 19... a5
{[%clk 0:01:45.7]} 20. Nxa5 {[%clk 0:01:54.4]} 20... Qc7 {[%clk 0:01:42.7]} 21.
Qc5 {[%clk 0:01:42.1]} 21... Rfc8 {[%clk 0:01:30.6]} 22. Nxc6 {[%clk 0:01:27.4]}
22... Rxa1 {[%clk 0:01:28.7]} 23. Rxa1 {[%clk 0:01:18.4]} 23... Qxc6 {[%clk
0:01:27.8]} 24. Qxc6 {[%clk 0:01:17.8]} 24... Rxc6 {[%clk 0:01:27.5]} 25. c4
{[%clk 0:01:15.7]} 25... Ne4 {[%clk 0:01:22]} 26. Ra8+ {[%clk 0:01:10.1]} 26...
Kh7 {[%clk 0:01:21]} 27. Nd4 {[%clk 0:01:05]} 27... Rb6 {[%clk 0:01:15]} 28. g4
{[%clk 0:01:02.7]} 28... Rb2 {[%clk 0:01:06.1]} 29. Kf1 {[%clk 0:00:54.5]} 29...
Rb1+ {[%clk 0:00:58.2]} 30. Kg2 {[%clk 0:00:53.9]} 30... Rb2 {[%clk 0:00:58.1]}
31. Bg3 {[%clk 0:00:46.5]} 31... Bxd4 {[%clk 0:00:52.3]} 32. Bf3 {[%clk
0:00:45.4]} 32... Nxg3 {[%clk 0:00:49]} 33. exd4 {[%clk 0:00:42.6]} 33... Ne2
{[%clk 0:00:47.2]} 34. Bxe2 {[%clk 0:00:38.4]} 34... Rxe2 {[%clk 0:00:45.8]} 35.
c5 {[%clk 0:00:38]} 35... dxc5 {[%clk 0:00:44.2]} 36. dxc5 {[%clk 0:00:37.9]}
36... Rc2 {[%clk 0:00:43.1]} 37. Ra7 {[%clk 0:00:35.6]} 37... Rxc5 {[%clk
0:00:40.1]} 38. Rxe7 {[%clk 0:00:35.1]} 38... Kg7 {[%clk 0:00:39.1]} 39. Kf3
{[%clk 0:00:34.3]} 39... Rc3+ {[%clk 0:00:35]} 40. Kg2 {[%clk 0:00:32.1]} 40...
g5 {[%clk 0:00:31.7]} 41. Ra7 {[%clk 0:00:30.3]} 41... Rb3 {[%clk 0:00:30.9]}
42. Ra6 {[%clk 0:00:29.6]} 42... Rc3 {[%clk 0:00:29.9]} 43. Rb6 {[%clk
0:00:29.5]} 43... Ra3 {[%clk 0:00:29.2]} 44. Rc6 {[%clk 0:00:29.3]} 44... Rb3
{[%clk 0:00:29.1]} 45. Ra6 {[%clk 0:00:29.1]} 45... Rc3 {[%clk 0:00:29]} 46. Rb6
{[%clk 0:00:29.1]} 46... Ra3 {[%clk 0:00:28.5]} 47. Rc6 {[%clk 0:00:29.1]} 47...
Rb3 {[%clk 0:00:28.5]} 48. Ra6 {[%clk 0:00:29]} 1/2-1/2

[Event "Betsys MČR v online bleskovém šachu 2021"]
[Site "Chess.com"]
[Date "2021.04.17"]
[Round "9"]
[White "Tassa15"]
[Black "krajic001"]
[Result "0-1"]
[WhiteElo "867"]
[BlackElo "1225"]
[TimeControl "180+1"]
[EndTime "10:30:28 PDT"]
[Termination "Uživatel krajic001 zvítězil na čas"]

1. d4 {[%clk 0:03:00.9]} 1... Nf6 {[%clk 0:02:53.7]} 2. Bg5 {[%clk 0:02:57.9]}
2... Ne4 {[%clk 0:02:42.6]} 3. Bf4 {[%clk 0:02:56.6]} 3... g5 {[%clk 0:02:38.3]}
4. Qd3 {[%clk 0:02:40.7]} 4... Nxf2 {[%clk 0:02:31.4]} 5. Kxf2 {[%clk
0:02:35.7]} 5... gxf4 {[%clk 0:02:30.7]} 6. Qe4 {[%clk 0:02:32.1]} 6... Bh6
{[%clk 0:02:28.3]} 7. Nf3 {[%clk 0:02:27.6]} 7... d6 {[%clk 0:02:22.2]} 8. Nbd2
{[%clk 0:02:20.6]} 8... f5 {[%clk 0:02:20.3]} 9. Qd3 {[%clk 0:02:10.7]} 9... Nc6
{[%clk 0:02:15.7]} 10. c3 {[%clk 0:02:08.8]} 10... Be6 {[%clk 0:02:13.7]} 11.
Nh4 {[%clk 0:02:00.7]} 11... Qd7 {[%clk 0:01:50.2]} 12. Ke1 {[%clk 0:01:45.2]}
12... O-O-O {[%clk 0:01:46.7]} 13. Ndf3 {[%clk 0:01:38.4]} 13... Na5 {[%clk
0:01:35.1]} 14. Kd2 {[%clk 0:01:12.5]} 14... Nc4+ {[%clk 0:01:31.2]} 15. Kc2
{[%clk 0:01:09.7]} 15... Ne3+ {[%clk 0:01:27.6]} 16. Kd2 {[%clk 0:00:56.3]}
16... Rhf8 {[%clk 0:01:25]} 17. g3 {[%clk 0:00:48.7]} 17... Bc4 {[%clk
0:01:20.8]} 18. Qb1 {[%clk 0:00:41.1]} 18... fxg3 {[%clk 0:01:19.5]} 19. hxg3
{[%clk 0:00:38.3]} 19... Nxf1+ {[%clk 0:01:12.3]} 20. Kc2 {[%clk 0:00:22.6]}
20... Nxg3 {[%clk 0:01:08.6]} 21. Re1 {[%clk 0:00:20.4]} 21... Bd5 {[%clk
0:00:56.4]} 22. Nd2 {[%clk 0:00:18]} 22... Qe6 {[%clk 0:00:47]} 23. Rg1 {[%clk
0:00:16.3]} 23... Nxe2 {[%clk 0:00:40.2]} 24. Re1 {[%clk 0:00:13.8]} 24... Nxd4+
{[%clk 0:00:37.7]} 25. Kd3 {[%clk 0:00:12.2]} 25... Bc4+ {[%clk 0:00:17.5]} 26.
Nxc4 {[%clk 0:00:08.4]} 26... Qf6 {[%clk 0:00:08.4]} 27. cxd4 {[%clk 0:00:07.6]}
27... c5 {[%clk 0:00:06.2]} 0-1

[Event "Betsys MČR v online bleskovém šachu 2021"]
[Site "Chess.com"]
[Date "2021.04.17"]
[Round "9"]
[White "alenka777"]
[Black "czechfant94"]
[Result "0-1"]
[WhiteElo "1285"]
[BlackElo "1594"]
[TimeControl "180+1"]
[EndTime "10:30:30 PDT"]
[Termination "Uživatel czechfant94 zvítězil matem"]

1. e4 {[%clk 0:03:00.9]} 1... e5 {[%clk 0:03:00.1]} 2. Nc3 {[%clk 0:02:56.5]}
2... Nc6 {[%clk 0:02:59.6]} 3. Nf3 {[%clk 0:02:56.1]} 3... Nf6 {[%clk 0:02:59]}
4. Bc4 {[%clk 0:02:56.2]} 4... Bc5 {[%clk 0:02:58.5]} 5. d3 {[%clk 0:02:55.9]}
5... O-O {[%clk 0:02:58.2]} 6. Be3 {[%clk 0:02:56]} 6... Bb6 {[%clk 0:02:55.4]}
7. Bg5 {[%clk 0:02:50.8]} 7... h6 {[%clk 0:02:54.9]} 8. Bh4 {[%clk 0:02:49.3]}
8... d6 {[%clk 0:02:52.5]} 9. Nd5 {[%clk 0:02:36.9]} 9... Be6 {[%clk 0:02:50.1]}
10. Nxb6 {[%clk 0:02:29.7]} 10... axb6 {[%clk 0:02:49.8]} 11. a3 {[%clk
0:02:22.1]} 11... Bg4 {[%clk 0:02:49.7]} 12. h3 {[%clk 0:02:20.8]} 12... Bh5
{[%clk 0:02:49.7]} 13. c3 {[%clk 0:02:14.4]} 13... Na5 {[%clk 0:02:42.4]} 14.
Bd5 {[%clk 0:02:08.6]} 14... c6 {[%clk 0:02:40.5]} 15. Ba2 {[%clk 0:02:04.3]}
15... c5 {[%clk 0:02:33.5]} 16. g4 {[%clk 0:02:00.4]} 16... Bg6 {[%clk
0:02:29.7]} 17. Bg3 {[%clk 0:01:59.2]} 17... h5 {[%clk 0:02:27.6]} 18. gxh5
{[%clk 0:01:56.2]} 18... Nxh5 {[%clk 0:02:27.6]} 19. Rg1 {[%clk 0:01:52.4]}
19... Nxg3 {[%clk 0:02:27.5]} 20. Rxg3 {[%clk 0:01:51.6]} 20... Qf6 {[%clk
0:02:24.8]} 21. Rg5 {[%clk 0:01:44.6]} 21... Qf4 {[%clk 0:02:12.3]} 22. h4
{[%clk 0:01:42.3]} 22... Bh7 {[%clk 0:01:57.5]} 23. Ke2 {[%clk 0:01:35.8]} 23...
g6 {[%clk 0:01:47.9]} 24. Qg1 {[%clk 0:01:29.9]} 24... Kg7 {[%clk 0:01:46.7]}
25. h5 {[%clk 0:01:25.6]} 25... Rh8 {[%clk 0:01:35.5]} 26. Qg2 {[%clk
0:01:14.5]} 26... Kf8 {[%clk 0:01:33]} 27. Rh1 {[%clk 0:01:07.3]} 27... Ke7
{[%clk 0:01:31.9]} 28. hxg6 {[%clk 0:01:04.4]} 28... Bxg6 {[%clk 0:01:32.8]} 29.
Rxh8 {[%clk 0:01:01.2]} 29... Rxh8 {[%clk 0:01:31.4]} 30. Rxg6 {[%clk
0:01:00.6]} 30... fxg6 {[%clk 0:01:29.5]} 31. Qxg6 {[%clk 0:01:01.1]} 31... Qf6
{[%clk 0:01:24.6]} 32. Qg4 {[%clk 0:00:55.5]} 32... Rf8 {[%clk 0:01:24.2]} 33.
Qg3 {[%clk 0:00:50.5]} 33... Nc6 {[%clk 0:01:22.3]} 34. Bd5 {[%clk 0:00:48.8]}
34... b5 {[%clk 0:01:18.8]} 35. Bxc6 {[%clk 0:00:43.8]} 35... bxc6 {[%clk
0:01:17.8]} 36. b4 {[%clk 0:00:44.2]} 36... cxb4 {[%clk 0:01:17.1]} 37. axb4
{[%clk 0:00:43.7]} 37... Qf4 {[%clk 0:01:17.6]} 38. Qxf4 {[%clk 0:00:40.8]}
38... Rxf4 {[%clk 0:01:17.4]} 39. d4 {[%clk 0:00:37.1]} 39... Ke6 {[%clk
0:01:12.7]} 40. dxe5 {[%clk 0:00:35.7]} 40... Rxe4+ {[%clk 0:01:09.4]} 41. Kd3
{[%clk 0:00:34.9]} 41... Rxe5 {[%clk 0:01:03.6]} 42. Kd4 {[%clk 0:00:32.4]}
42... Rf5 {[%clk 0:01:00.1]} 43. Nh4 {[%clk 0:00:26.1]} 43... Rf4+ {[%clk
0:00:59.5]} 44. Kd3 {[%clk 0:00:24.7]} 44... Rxh4 {[%clk 0:00:58.7]} 45. Ke3
{[%clk 0:00:24.6]} 45... d5 {[%clk 0:00:58.8]} 46. f3 {[%clk 0:00:24.6]} 46...
Ke5 {[%clk 0:00:58.4]} 47. Kd3 {[%clk 0:00:21.9]} 47... Rh3 {[%clk 0:00:58.5]}
48. Ke3 {[%clk 0:00:22.1]} 48... Kf5 {[%clk 0:00:57]} 49. Kd4 {[%clk 0:00:20.2]}
49... Rxf3 {[%clk 0:00:56.5]} 50. Kc5 {[%clk 0:00:20.6]} 50... Rxc3+ {[%clk
0:00:56.7]} 51. Kb6 {[%clk 0:00:19.6]} 51... d4 {[%clk 0:00:57.1]} 52. Ka5
{[%clk 0:00:18.5]} 52... d3 {[%clk 0:00:58]} 53. Kb6 {[%clk 0:00:17.9]} 53... d2
{[%clk 0:00:58.4]} 54. Ka5 {[%clk 0:00:17.8]} 54... d1=Q {[%clk 0:00:57.6]} 55.
Kb6 {[%clk 0:00:17.4]} 55... Qd4+ {[%clk 0:00:57.7]} 56. Ka5 {[%clk 0:00:16.8]}
56... Ra3# {[%clk 0:00:57.6]} 0-1

[Event "Betsys MČR v online bleskovém šachu 2021"]
[Site "Chess.com"]
[Date "2021.04.17"]
[Round "9"]
[White "Berzeger"]
[Black "JuliliaR"]
[Result "0-1"]
[WhiteElo "1033"]
[BlackElo "1316"]
[TimeControl "180+1"]
[EndTime "10:30:30 PDT"]
[Termination "Uživatel JuliliaR zvítězil na čas"]

1. e4 {[%clk 0:03:00.9]} 1... d5 {[%clk 0:02:59.1]} 2. exd5 {[%clk 0:02:59.1]}
2... Qxd5 {[%clk 0:02:58]} 3. Nc3 {[%clk 0:02:58.9]} 3... Qd6 {[%clk 0:02:56.3]}
4. Nf3 {[%clk 0:02:53.8]} 4... c6 {[%clk 0:02:55.2]} 5. Bc4 {[%clk 0:02:51.2]}
5... Nf6 {[%clk 0:02:54.4]} 6. d3 {[%clk 0:02:51]} 6... Bg4 {[%clk 0:02:53.2]}
7. h3 {[%clk 0:02:44.5]} 7... Bh5 {[%clk 0:02:52.4]} 8. O-O {[%clk 0:02:21.6]}
8... e6 {[%clk 0:02:51.2]} 9. Qe2 {[%clk 0:02:06]} 9... Nbd7 {[%clk 0:02:45.3]}
10. Qe3 {[%clk 0:01:59.7]} 10... Qc7 {[%clk 0:02:42.9]} 11. Ne4 {[%clk
0:01:31.6]} 11... Nxe4 {[%clk 0:02:36.5]} 12. Qxe4 {[%clk 0:01:27.8]} 12... Nf6
{[%clk 0:02:35]} 13. Qe3 {[%clk 0:01:17.3]} 13... Bd6 {[%clk 0:02:33.2]} 14. b3
{[%clk 0:01:06.8]} 14... O-O-O {[%clk 0:02:30]} 15. Bb2 {[%clk 0:01:04.8]} 15...
Rhg8 {[%clk 0:02:23]} 16. Be5 {[%clk 0:00:59]} 16... Nd5 {[%clk 0:02:11.9]} 17.
Bxd6 {[%clk 0:00:50.5]} 17... Qxd6 {[%clk 0:02:04.1]} 18. Bxd5 {[%clk
0:00:42.9]} 18... exd5 {[%clk 0:02:02.1]} 19. Qg5 {[%clk 0:00:42.1]} 19... Bxf3
{[%clk 0:01:56.9]} 20. gxf3 {[%clk 0:00:42.3]} 20... h6 {[%clk 0:01:53.9]} 21.
Qf5+ {[%clk 0:00:41.1]} 21... Qe6 {[%clk 0:01:42.3]} 22. Qf4 {[%clk 0:00:31.7]}
22... g5 {[%clk 0:01:39.9]} 23. Qg4 {[%clk 0:00:28.5]} 23... h5 {[%clk
0:01:31.1]} 24. Qxe6+ {[%clk 0:00:22.8]} 24... fxe6 {[%clk 0:01:30]} 25. Rfe1
{[%clk 0:00:20.4]} 25... Kd7 {[%clk 0:01:28.1]} 26. Kg2 {[%clk 0:00:20.7]} 26...
Rdf8 {[%clk 0:01:26.2]} 27. Re3 {[%clk 0:00:20]} 27... g4 {[%clk 0:01:25]} 28.
fxg4 {[%clk 0:00:18.2]} 28... hxg4 {[%clk 0:01:24.1]} 29. hxg4 {[%clk
0:00:15.7]} 29... Rxg4+ {[%clk 0:01:23.5]} 30. Kf1 {[%clk 0:00:15]} 30... Rgf4
{[%clk 0:01:22.7]} 31. Re2 {[%clk 0:00:11.9]} 31... Rg4 {[%clk 0:01:19.5]} 32.
Rae1 {[%clk 0:00:12.1]} 32... Rgf4 {[%clk 0:01:10]} 33. Kg2 {[%clk 0:00:06.1]}
33... Rg8+ {[%clk 0:01:08.1]} 34. Kf1 {[%clk 0:00:06.4]} 34... Rfg4 {[%clk
0:01:01.7]} 35. Rxe6 {[%clk 0:00:04.7]} 35... Rg1+ {[%clk 0:01:00.9]} 36. Ke2
{[%clk 0:00:05]} 36... Kxe6 {[%clk 0:00:55.4]} 37. Rxg1 {[%clk 0:00:02.9]} 37...
Rxg1 {[%clk 0:00:53.4]} 38. Ke3 {[%clk 0:00:03.4]} 38... Re1+ {[%clk 0:00:52.1]}
39. Kf4 {[%clk 0:00:02.7]} 39... Re2 {[%clk 0:00:51.2]} 40. Kg3 {[%clk
0:00:01.8]} 40... Rxc2 {[%clk 0:00:50.6]} 41. f4 {[%clk 0:00:02.5]} 41... Rxa2
{[%clk 0:00:49.5]} 42. Kg4 {[%clk 0:00:03.2]} 42... Rg2+ {[%clk 0:00:47.8]} 43.
Kh5 {[%clk 0:00:01.5]} 43... Kf5 {[%clk 0:00:44.6]} 0-1

[Event "Betsys MČR v online bleskovém šachu 2021"]
[Site "Chess.com"]
[Date "2021.04.17"]
[Round "9"]
[White "Countryside_58"]
[Black "JJ95"]
[Result "1-0"]
[WhiteElo "2406"]
[BlackElo "2016"]
[TimeControl "180+1"]
[EndTime "10:30:31 PDT"]
[Termination "Uživatel Countryside_58 zvítězil na čas"]

1. h4 {[%clk 0:03:00.9]} 1... e5 {[%clk 0:02:59.1]} 2. h5 {[%clk 0:02:59.7]}
2... h6 {[%clk 0:02:59.1]} 3. c3 {[%clk 0:03:00.1]} 3... d5 {[%clk 0:02:58.7]}
4. d4 {[%clk 0:03:00.7]} 4... e4 {[%clk 0:02:59]} 5. Bf4 {[%clk 0:02:59.9]} 5...
Nf6 {[%clk 0:02:53]} 6. e3 {[%clk 0:02:59.5]} 6... Bg4 {[%clk 0:02:51.8]} 7. Qb3
{[%clk 0:02:59.3]} 7... Nbd7 {[%clk 0:02:31.5]} 8. c4 {[%clk 0:02:54.3]} 8...
Nb6 {[%clk 0:02:18.1]} 9. Nc3 {[%clk 0:02:48.3]} 9... Nxh5 {[%clk 0:02:06.3]}
10. Be5 {[%clk 0:02:47]} 10... Nf6 {[%clk 0:01:53.8]} 11. Bxf6 {[%clk
0:02:46.3]} 11... Qxf6 {[%clk 0:01:48]} 12. c5 {[%clk 0:02:42.2]} 12... Nd7
{[%clk 0:01:40.6]} 13. Nxd5 {[%clk 0:02:35.9]} 13... Qd8 {[%clk 0:01:37.7]} 14.
Qxb7 {[%clk 0:02:32.3]} 14... Rc8 {[%clk 0:01:25.6]} 15. Nc3 {[%clk 0:02:25.6]}
15... Nxc5 {[%clk 0:01:20.7]} 16. dxc5 {[%clk 0:02:17.2]} 16... Bxc5 {[%clk
0:01:19]} 17. Qxe4+ {[%clk 0:02:15.1]} 17... Be6 {[%clk 0:01:19.1]} 18. Bb5+
{[%clk 0:02:14.2]} 18... Kf8 {[%clk 0:01:15.2]} 19. Nge2 {[%clk 0:02:09.5]}
19... Rb8 {[%clk 0:01:07.8]} 20. Rd1 {[%clk 0:01:56.3]} 20... Qf6 {[%clk
0:01:07.3]} 21. O-O {[%clk 0:01:41.7]} 21... g5 {[%clk 0:01:00.8]} 22. Qc6
{[%clk 0:01:28.4]} 22... Bd6 {[%clk 0:00:55.1]} 23. Ne4 {[%clk 0:01:26.1]} 23...
Qxb2 {[%clk 0:00:49.1]} 24. Nxd6 {[%clk 0:01:25.6]} 24... cxd6 {[%clk
0:00:44.3]} 25. Qxd6+ {[%clk 0:01:25.3]} 25... Kg7 {[%clk 0:00:43.1]} 26. Qd4+
{[%clk 0:01:24.9]} 26... Qxd4 {[%clk 0:00:39.4]} 27. Nxd4 {[%clk 0:01:25.8]}
27... Bxa2 {[%clk 0:00:39.1]} 28. Ra1 {[%clk 0:01:25.8]} 28... Bd5 {[%clk
0:00:35.1]} 29. Rxa7 {[%clk 0:01:25.4]} 29... h5 {[%clk 0:00:33.7]} 30. Bc6
{[%clk 0:01:21.8]} 30... Bc4 {[%clk 0:00:33.1]} 31. Rc1 {[%clk 0:01:18.8]} 31...
Bd3 {[%clk 0:00:33]} 32. Bf3 {[%clk 0:01:14.6]} 32... h4 {[%clk 0:00:32]} 33.
Be2 {[%clk 0:01:14.3]} 33... Bg6 {[%clk 0:00:25.7]} 34. Bg4 {[%clk 0:01:13.3]}
34... Rb2 {[%clk 0:00:14.4]} 35. Bf5 {[%clk 0:01:12]} 35... Bxf5 {[%clk
0:00:09.2]} 36. Nxf5+ {[%clk 0:01:10.8]} 36... Kf6 {[%clk 0:00:09.1]} 37. Nd4
{[%clk 0:01:10.5]} 37... h3 {[%clk 0:00:09.2]} 38. Rc6+ {[%clk 0:01:09.5]} 38...
Ke5 {[%clk 0:00:06.7]} 39. Ra5+ {[%clk 0:01:07.4]} 39... Ke4 {[%clk 0:00:06.6]}
40. gxh3 {[%clk 0:01:03]} 40... Rxh3 {[%clk 0:00:05.9]} 41. Kg2 {[%clk
0:00:53.7]} 41... Rh4 {[%clk 0:00:05.6]} 42. Rxg5 {[%clk 0:00:50.1]} 42... f5
{[%clk 0:00:04.7]} 43. Nxf5 {[%clk 0:00:45.3]} 43... Rd2 {[%clk 0:00:01.7]} 44.
Ng3+ {[%clk 0:00:43.8]} 44... Kd3 {[%clk 0:00:01.1]} 45. Rd5+ {[%clk 0:00:43.8]}
1-0